fUSD/lending_fUSD_20241002
["ID","MTS","AMOUNT","RATE_DAILY","PERIOD"]
[339684075,1727863847606,-150.0,0.00026599,4]
[339684076,1727863847616,-150.0,0.000266,4]
[339684077,1727863847626,-150.0,0.00026607,4]
[339684078,1727863847636,-150.0,0.00026632,4]
[339684079,1727863847646,-150.0,0.00026657,4]
[339684080,1727863847655,-150.0,0.00026657,4]
[339684081,1727863847665,-150.0,0.00026661,4]
[339684082,1727863847676,-150.0,0.00026666,4]
[339684083,1727863847688,-196.0,0.0002667,30]
[339684084,1727863847705,-196.0,0.0002668,30]
[339684085,1727863847715,-196.0,0.0002669,30]
[339684086,1727863847725,-150.0,0.000267,4]
[339684087,1727863847735,-200.0,0.000267,11]
[339684088,1727863847745,-150.0,0.00026706,4]
[339684089,1727863847755,-736.39,0.00026709,2]
[339684090,1727863847764,-500.0,0.00026711,2]
[339684091,1727863847774,-150.0,0.00026722,4]
[339684092,1727863847785,-150.0,0.00026722,4]
[339684093,1727863847794,-150.0,0.00026734,4]
[339684094,1727863847804,-934.0420317,0.00026749,2]
[339684095,1727863847814,-150.0,0.00026755,4]
[339684096,1727863847824,-150.0,0.00026767,4]
[339684097,1727863847835,-1180.38,0.00026783,2]
[339684098,1727863847845,-150.0,0.00026784,4]
[339684099,1727863847855,-23234.8361678,0.0002679,4]
[339684100,1727863847866,-9400.0,0.000268,9]
[339684101,1727863847876,-150.0,0.00026801,4]
[339684102,1727863847885,-150.0,0.00026805,4]
[339684103,1727863847895,-30763.1461654,0.00026811,4]
[339684104,1727863847905,-1000.0,0.00026821,2]
[339684105,1727863847916,-150.0,0.00026835,4]
[339684106,1727863847925,-150.0,0.00026845,4]
[339684107,1727863847941,-428.61,0.00026849,2]
[339684108,1727863847951,-423.25,0.00026849,2]
[339684109,1727863847961,-423.25,0.00026849,2]
[339684110,1727863847972,-150.0,0.00026854,4]
[339684111,1727863847982,-150.0,0.00026854,4]
[339684112,1727863847992,-150.0,0.00026868,4]
[339684113,1727863848002,-150.0,0.00026899,2]
[339684114,1727863848013,-12500.0,0.000269,9]
[339684115,1727863848022,-150.0,0.00026902,4]
[339684116,1727863848032,-150.0,0.00026903,4]
[339684117,1727863848043,-150.0,0.00026907,4]
[339684118,1727863848053,-204.0,0.0002693,2]
[339684119,1727863848063,-250.0,0.0002693,2]
[339684120,1727863848074,-150.0,0.00026936,4]
[339684121,1727863848085,-500.0,0.00026941,2]
[339684122,1727863848095,-150.0,0.00026953,4]
[339684123,1727863848104,-150.0,0.00026968,4]
[339684124,1727863848114,-150.0,0.0002697,4]
[339684125,1727863848124,-800.0,0.00026986,120]
[339684126,1727863848135,-800.0,0.00026986,120]
[339684127,1727863848145,-800.0,0.00026986,120]
[339684128,1727863848155,-800.0,0.00026986,120]
[339684129,1727863848166,-800.0,0.00026986,120]
[339684130,1727863848175,-800.0,0.00026986,120]
[339684131,1727863848187,-800.0,0.00026986,120]
[339684132,1727863848197,-800.0,0.00026986,120]
[339684133,1727863848207,-800.0,0.00026986,120]
[339684134,1727863848217,-800.0,0.00026986,120]
[339684135,1727863848228,-498.37,0.00026986,120]
[339684136,1727863848238,-650.0,0.00027,2]
[339684137,1727863848248,-2000.0,0.00027,2]
[339684138,1727863848258,-150.0,0.00027002,4]
[339684139,1727863848268,-150.0,0.00027003,4]
[339684140,1727863848277,-2006.441969,0.0002701,2]
[339684141,1727863848287,-150.0,0.0002703,4]
[339684142,1727863848296,-150.0,0.00027037,4]
[339684143,1727863848306,-655.17,0.00027045,120]
[339684144,1727863848316,-150.0,0.00027051,4]
[339684145,1727863848326,-150.0,0.00027051,4]
[339684146,1727863848337,-150.0,0.00027071,4]
[339684147,1727863848351,-150.0,0.00027091,4]
[339684148,1727863848361,-150.0,0.00027101,4]
[339684149,1727863848371,-150.0,0.00027104,4]
[339684150,1727863848382,-150.0,0.00027138,4]
[339684151,1727863848392,-394.99059742,0.00027145,2]
[339684152,1727863848402,-150.0,0.0002715,4]
[339684153,1727863848411,-150.0,0.00027152,4]
[339684154,1727863848425,-150.0,0.00027172,4]
[339684155,1727863848437,-150.0,0.000272,4]
[339684156,1727863848447,-150.0,0.00027206,4]
[339684157,1727863848457,-150.0,0.00027214,4]
[339684158,1727863848466,-150.0,0.00027239,4]
[339684159,1727863848476,-150.0,0.00027249,4]
[339684160,1727863848486,-150.0,0.00027249,4]
[339684161,1727863848496,-30763.1461654,0.00027268,4]
[339684162,1727863848507,-150.0,0.00027273,4]
[339684163,1727863848516,-150.0,0.00027275,4]
[339684164,1727863848526,-46469.6723356,0.00027278,4]
[339684165,1727863848536,-23234.8361678,0.00027288,4]
[339684166,1727863848546,-30763.1461654,0.00027288,4]
[339684167,1727863848555,-470.21514408,0.00027297,2]
[339684168,1727863848566,-313.31629267,0.00027297,2]
[339684169,1727863848575,-1603.96777428,0.00027297,2]
[339684170,1727863848585,-212.39098182,0.00027297,2]
[339684171,1727863848596,-345.91772922,0.00027297,5]
[339684172,1727863848606,-3539.6877563,0.00027297,2]
[339684173,1727863848616,-63217.31745841,0.00027298,19]
[339684174,1727863848627,-150.0,0.00027298,4]
[339684175,1727863848637,-10515.54799868,0.000273,2]
[339684176,1727863848647,-150.0,0.00027307,4]
[339684177,1727863848657,-30763.1461654,0.00027327,4]
[339684178,1727863848667,-150.0,0.00027337,4]
[339684179,1727863848677,-150.0,0.0002734,4]
[339684180,1727863848689,-150.0,0.00027348,4]
[339684181,1727863848699,-30763.1461654,0.00027367,4]
[339684182,1727863848708,-500.0,0.00027373,2]
[339684183,1727863848718,-500.0,0.00027373,2]
[339684184,1727863848728,-150.0,0.00027374,4]
[339684185,1727863848739,-69704.5085035,0.00027377,4]
[339684186,1727863848749,-46469.6723356,0.00027387,4]
[339684187,1727863848759,-246105.169324,0.00027387,4]
[339684188,1727863848769,-190.84835501,0.00027387,2]
[339684189,1727863848778,-500.0,0.00027397,14]
[339684190,1727863848888,-500.0,0.00027397,14]
[339684191,1727863848899,-500.0,0.00027397,14]
[339684192,1727863848909,-500.0,0.00027397,14]
[339684193,1727863848919,-500.0,0.00027397,14]
[339684194,1727863848928,-500.0,0.00027397,14]
[339684195,1727863848938,-500.0,0.00027397,14]
[339684196,1727863848948,-500.0,0.00027397,14]
[339684197,1727863848957,-500.0,0.00027397,14]
[339684198,1727863848967,-500.0,0.00027397,14]
[339684199,1727863848976,-181.92668691,0.00027397,14]
[339684200,1727863848986,-500.0,0.00027397,14]
[339684201,1727863848995,-500.0,0.00027397,14]
[339684202,1727863849005,-276.02410815,0.00027397,14]
[339684203,1727863849014,-500.0,0.00027397,14]
[339684204,1727863849024,-316.51756359,0.00027397,14]
[339684205,1727863849033,-500.0,0.00027397,14]
[339684206,1727863849043,-500.0,0.00027397,14]
[339684207,1727863849052,-500.0,0.00027397,14]
[339684208,1727863849062,-500.0,0.00027397,14]
[339684209,1727863849072,-500.0,0.00027397,14]
[339684210,1727863849081,-500.0,0.00027397,14]
[339684211,1727863849091,-500.0,0.00027397,14]
[339684212,1727863849101,-500.0,0.00027397,14]
[339684213,1727863849110,-500.0,0.00027397,14]
[339684214,1727863849120,-500.0,0.00027397,14]
[339684215,1727863849130,-1620.5,0.00027397,14]
[339684216,1727863849140,-500.0,0.00027397,14]
[339684217,1727863849150,-500.0,0.00027397,14]
[339684218,1727863849160,-671.06,0.00027397,14]
[339684219,1727863849170,-500.0,0.00027397,14]
[339684220,1727863849179,-500.0,0.00027397,14]
[339684221,1727863849190,-500.0,0.00027397,14]
[339684222,1727863849200,-635.03717163,0.00027397,14]
[339684223,1727863849210,-636.62591621,0.00027397,14]
[339684224,1727863849219,-500.0,0.00027397,14]
[339684225,1727863849229,-805.17,0.00027397,14]
[339684226,1727863849238,-500.0,0.00027397,14]
[339684227,1727863849248,-500.0,0.00027397,14]
[339684228,1727863849257,-500.0,0.00027397,14]
[339684229,1727863849267,-500.0,0.00027397,14]
[339684230,1727863849276,-941.87,0.00027397,5]
[339684231,1727863849286,-500.0,0.00027397,14]
[339684232,1727863849295,-500.0,0.00027397,14]
[339684233,1727863849304,-500.0,0.00027397,14]
[339684234,1727863849314,-1437.41,0.00027397,14]
[339684235,1727863849324,-500.0,0.00027397,2]
[339684236,1727863849335,-500.0,0.00027397,14]
[339684237,1727863849350,-500.0,0.00027397,14]
[339684238,1727863849360,-500.0,0.00027397,14]
[339684239,1727863849371,-500.0,0.00027397,14]
[339684240,1727863849380,-500.0,0.00027397,14]
[339684241,1727863849390,-500.0,0.00027397,14]
[339684242,1727863849399,-500.0,0.00027397,14]
[339684243,1727863849409,-500.0,0.00027397,14]
[339684244,1727863849418,-500.0,0.00027397,14]
[339684245,1727863849428,-950.52,0.00027397,14]
[339684246,1727863849440,-500.0,0.00027397,14]
[339684247,1727863849450,-500.0,0.00027397,14]
[339684248,1727863849459,-500.0,0.00027397,14]
[339684249,1727863849469,-500.0,0.00027397,14]
[339684250,1727863849479,-500.0,0.00027397,14]
[339684251,1727863849488,-1026.35,0.00027397,14]
[339684252,1727863849498,-592.3,0.00027397,14]
[339684253,1727863849508,-500.0,0.00027397,14]
[339684254,1727863849517,-500.0,0.00027397,14]
[339684255,1727863849527,-504.72492078,0.00027397,14]
[339684256,1727863849537,-500.0,0.00027397,14]
[339684257,1727863849547,-500.0,0.00027397,14]
[339684258,1727863849557,-500.0,0.00027397,14]
[339684259,1727863849567,-500.0,0.00027397,14]
[339684260,1727863849577,-813.04,0.00027397,14]
[339684261,1727863849587,-500.0,0.00027397,14]
[339684262,1727863849597,-500.0,0.00027397,14]
[339684263,1727863849609,-500.0,0.00027397,14]
[339684264,1727863849619,-500.0,0.00027397,14]
[339684265,1727863849629,-500.0,0.00027397,14]
[339684266,1727863849639,-505.74538609,0.00027397,14]
[339684267,1727863849649,-500.0,0.00027397,14]
[339684268,1727863849659,-500.0,0.00027397,14]
[339684269,1727863849669,-500.0,0.00027397,14]
[339684270,1727863849679,-1256.83,0.00027397,14]
[339684271,1727863849691,-500.0,0.00027397,14]
[339684272,1727863849700,-500.0,0.00027397,14]
[339684273,1727863849711,-1204.48,0.00027397,14]
[339684274,1727863849722,-500.0,0.00027397,14]
[339684275,1727863849731,-500.0,0.00027397,14]
[339684276,1727863849741,-500.0,0.00027397,14]
[339684277,1727863849751,-500.0,0.00027397,14]
[339684278,1727863849762,-1456.46,0.00027397,14]
[339684279,1727863849771,-1017.82,0.00027397,14]
[339684280,1727863849781,-1125.44,0.00027397,14]
[339684281,1727863849790,-500.0,0.00027397,14]
[339684282,1727863849800,-506.94397591,0.00027397,14]
[339684283,1727863849809,-678.77,0.00027397,14]
[339684284,1727863849819,-500.0,0.00027397,14]
[339684285,1727863849829,-500.0,0.00027397,14]
[339684286,1727863849839,-500.0,0.00027397,14]
[339684287,1727863849848,-694.52,0.00027397,14]
[339684288,1727863849858,-500.0,0.00027397,14]
[339684289,1727863849867,-500.0,0.00027397,14]
[339684290,1727863849876,-535.33,0.00027397,14]
[339684291,1727863849886,-1102.73,0.00027397,14]
[339684292,1727863849896,-500.0,0.00027397,14]
[339684293,1727863849905,-1664.36,0.00027397,14]
[339684294,1727863849914,-1635.88,0.00027397,14]
[339684295,1727863849924,-509.06,0.00027397,14]
[339684296,1727863849933,-500.0,0.00027397,14]
[339684297,1727863849947,-500.0,0.00027397,14]
[339684298,1727863849957,-150.0,0.00027397,14]
[339684299,1727863849967,-2067.63,0.00027397,14]
[339684300,1727863849977,-500.0,0.00027397,14]
[339684301,1727863849987,-500.0,0.00027397,14]
[339684302,1727863849997,-345.56042214,0.00027397,14]
[339684303,1727863850007,-2215.74,0.00027397,14]
[339684304,1727863850016,-2122.07,0.00027397,14]
[339684305,1727863850026,-982.36,0.00027397,14]
[339684306,1727863850035,-500.0,0.00027397,14]
[339684307,1727863850044,-500.0,0.00027397,14]
[339684308,1727863850053,-535.24,0.00027397,14]
[339684309,1727863850063,-500.0,0.00027397,14]
[339684310,1727863850072,-500.0,0.00027397,14]
[339684311,1727863850081,-526.1,0.00027397,14]
[339684312,1727863850091,-1709.67,0.00027397,14]
[339684313,1727863850100,-660.04,0.00027397,14]
[339684314,1727863850109,-500.0,0.00027397,14]
[339684315,1727863850119,-643.4,0.00027397,14]
[339684316,1727863850128,-500.0,0.00027397,14]
[339684317,1727863850138,-500.0,0.00027397,14]
[339684318,1727863850147,-402.16682028,0.00027397,14]
[339684319,1727863850156,-559.22,0.00027397,14]
[339684320,1727863850166,-545.97,0.00027397,14]
[339684321,1727863850175,-500.0,0.00027397,14]
[339684322,1727863850186,-500.0,0.00027397,14]
[339684323,1727863850195,-520.86,0.00027397,14]
[339684324,1727863850204,-500.0,0.00027397,14]
[339684325,1727863850214,-919.3,0.00027397,14]
[339684326,1727863850224,-737.14,0.00027397,14]
[339684327,1727863850233,-500.0,0.00027397,14]
[339684328,1727863850243,-500.0,0.00027397,14]
[339684329,1727863850252,-500.0,0.00027397,14]
[339684330,1727863850261,-500.0,0.00027397,14]
[339684331,1727863850270,-500.0,0.00027397,14]
[339684332,1727863850279,-500.0,0.00027397,14]
[339684333,1727863850288,-500.0,0.00027397,14]
[339684334,1727863850298,-502.89901457,0.00027397,14]
[339684335,1727863850307,-1261.79,0.00027397,14]
[339684336,1727863850316,-500.0,0.00027397,14]
[339684337,1727863850325,-500.0,0.00027397,14]
[339684338,1727863850334,-500.0,0.00027397,14]
[339684339,1727863850347,-500.0,0.00027397,14]
[339684340,1727863850356,-755.06,0.00027397,14]
[339684341,1727863850366,-858.44,0.00027397,14]
[339684342,1727863850375,-500.0,0.00027397,14]
[339684343,1727863850386,-500.0,0.00027397,14]
[339684344,1727863850395,-500.0,0.00027397,14]
[339684345,1727863850404,-500.0,0.00027397,14]
[339684346,1727863850413,-894.91,0.00027397,14]
[339684347,1727863850424,-500.0,0.00027397,14]
[339684348,1727863850433,-500.0,0.00027397,14]
[339684349,1727863850446,-790.17,0.00027397,14]
[339684350,1727863850455,-500.0,0.00027397,14]
[339684351,1727863850464,-2000.0,0.00027397,30]
[339684352,1727863850476,-685.65,0.00027397,14]
[339684353,1727863850486,-892.07,0.00027397,14]
[339684354,1727863850495,-500.0,0.00027397,14]
[339684355,1727863850504,-500.0,0.00027397,14]
[339684356,1727863850514,-500.0,0.00027397,14]
[339684357,1727863850523,-500.0,0.00027397,14]
[339684358,1727863850532,-647.03,0.00027397,14]
[339684359,1727863850542,-670.47,0.00027397,14]
[339684360,1727863850551,-802.85,0.00027397,14]
[339684361,1727863850561,-500.0,0.00027397,14]
[339684362,1727863850570,-633.01,0.00027397,14]
[339684363,1727863850580,-633.01,0.00027397,14]
[339684364,1727863850589,-633.01,0.00027397,14]
[339684365,1727863850599,-633.01,0.00027397,14]
[339684366,1727863850609,-633.01,0.00027397,14]
[339684367,1727863850619,-633.01,0.00027397,14]
[339684368,1727863850628,-633.01,0.00027397,14]
[339684369,1727863850638,-633.01,0.00027397,14]
[339684370,1727863850648,-633.01,0.00027397,14]
[339684371,1727863850657,-633.01,0.00027397,14]
[339684372,1727863850666,-633.01,0.00027397,14]
[339684373,1727863850676,-514.59,0.00027397,14]
[339684374,1727863850688,-796.93,0.00027397,14]
[339684375,1727863850698,-633.01,0.00027397,14]
[339684376,1727863850707,-633.01,0.00027397,14]
[339684377,1727863850716,-500.0,0.00027397,14]
[339684378,1727863850726,-633.01,0.00027397,14]
[339684379,1727863850735,-633.01,0.00027397,14]
[339684380,1727863850744,-633.01,0.00027397,14]
[339684381,1727863850754,-682.54,0.00027397,14]
[339684382,1727863850764,-500.0,0.00027397,14]
[339684383,1727863850774,-431.69898989,0.00027397,14]
[339684384,1727863850784,-500.0,0.00027397,14]
[339684385,1727863850794,-500.0,0.00027397,14]
[339684386,1727863850803,-500.0,0.00027397,14]
[339684387,1727863850812,-500.0,0.00027397,14]
[339684388,1727863850822,-725.6,0.00027397,14]
[339684389,1727863850832,-500.0,0.00027397,14]
[339684390,1727863850841,-500.0,0.00027397,14]
[339684391,1727863850850,-500.0,0.00027397,14]
[339684392,1727863850860,-1687.35,0.00027397,14]
[339684393,1727863850869,-500.0,0.00027397,2]
[339684394,1727863850879,-163.70654854,0.00027397,2]
[339684395,1727863850888,-299.80767445,0.00027397,14]
[339684396,1727863850899,-578.04,0.00027397,14]
[339684397,1727863850908,-500.0,0.00027397,14]
[339684398,1727863850918,-500.0,0.00027397,14]
[339684399,1727863850927,-339.84401184,0.00027397,14]
[339684400,1727863850938,-500.0,0.00027397,14]
[339684401,1727863850948,-1032.29,0.00027397,14]
[339684402,1727863850958,-500.0,0.00027397,14]
[339684403,1727863850968,-500.0,0.00027397,14]
[339684404,1727863850977,-500.0,0.00027397,14]
[339684405,1727863850987,-1658.15,0.00027397,14]
[339684406,1727863850996,-452.55527081,0.00027397,14]
[339684407,1727863851006,-500.0,0.00027397,14]
[339684408,1727863851015,-500.0,0.00027397,14]
[339684409,1727863851025,-500.0,0.00027397,14]
[339684410,1727863851036,-500.0,0.00027397,14]
[339684411,1727863851046,-500.0,0.00027397,14]
[339684412,1727863851056,-500.0,0.00027397,14]
[339684413,1727863851066,-1667.99,0.00027397,14]
[339684414,1727863851076,-500.0,0.00027397,14]
[339684415,1727863851086,-951.6,0.00027397,14]
[339684416,1727863851096,-500.0,0.00027397,14]
[339684417,1727863851105,-591.0,0.00027397,14]
[339684418,1727863851115,-205.57768597,0.00027397,14]
[339684419,1727863851125,-1377.73,0.00027397,14]
[339684420,1727863851135,-671.11,0.00027397,14]
[339684421,1727863851146,-500.0,0.00027397,14]
[339684422,1727863851156,-500.0,0.00027397,14]
[339684423,1727863851165,-1057.98,0.00027397,14]
[339684424,1727863851175,-500.0,0.00027397,14]
[339684425,1727863851185,-1577.06,0.00027397,14]
[339684426,1727863851194,-500.0,0.00027397,14]
[339684427,1727863851204,-500.0,0.00027397,14]
[339684428,1727863851214,-500.0,0.00027397,14]
[339684429,1727863851224,-330.89747814,0.00027397,14]
[339684430,1727863851234,-500.0,0.00027397,14]
[339684431,1727863851243,-500.0,0.00027397,14]
[339684432,1727863851253,-500.0,0.00027397,14]
[339684433,1727863851263,-673.96,0.00027397,14]
[339684434,1727863851273,-802.66,0.00027397,14]
[339684435,1727863851283,-500.0,0.00027397,14]
[339684436,1727863851293,-500.0,0.00027397,14]
[339684437,1727863851303,-712.35,0.00027397,14]
[339684438,1727863851313,-500.0,0.00027397,14]
[339684439,1727863851323,-569.21,0.00027397,14]
[339684440,1727863851333,-500.0,0.00027397,14]
[339684441,1727863851345,-622.1,0.00027397,14]
[339684442,1727863851355,-356.09082336,0.00027397,14]
[339684443,1727863851364,-1448.08,0.00027397,14]
[339684444,1727863851374,-1920.43,0.00027397,14]
[339684445,1727863851383,-548.07,0.00027397,14]
[339684446,1727863851393,-500.0,0.00027397,14]
[339684447,1727863851402,-2432.81,0.00027397,14]
[339684448,1727863851412,-911.53,0.00027397,14]
[339684449,1727863851422,-1468.75,0.00027397,14]
[339684450,1727863851431,-500.0,0.00027397,14]
[339684451,1727863851443,-2124.48,0.00027397,14]
[339684452,1727863851452,-2310.99,0.00027397,14]
[339684453,1727863851462,-1565.09,0.00027397,14]
[339684454,1727863851472,-292.16348824,0.00027397,14]
[339684455,1727863851482,-500.0,0.00027397,14]
[339684456,1727863851493,-500.0,0.00027397,14]
[339684457,1727863851502,-1213.63,0.00027397,14]
[339684458,1727863851512,-500.0,0.00027397,14]
[339684459,1727863851522,-674.58,0.00027397,14]
[339684460,1727863851532,-1348.32,0.00027397,14]
[339684461,1727863851541,-500.0,0.00027397,14]
[339684462,1727863851551,-500.0,0.00027397,14]
[339684463,1727863851561,-1098.52,0.00027397,14]
[339684464,1727863851571,-176.43243854,0.00027397,14]
[339684465,1727863851580,-2363.03,0.00027397,14]
[339684466,1727863851590,-500.0,0.00027397,14]
[339684467,1727863851600,-2763.02,0.00027397,14]
[339684468,1727863851610,-500.0,0.00027397,14]
[339684469,1727863851620,-582.56098311,0.00027397,14]
[339684470,1727863851629,-694.27,0.00027397,14]
[339684471,1727863851639,-500.0,0.00027397,14]
[339684472,1727863851649,-710.99,0.00027397,14]
[339684473,1727863851659,-500.0,0.00027397,14]
[339684474,1727863851668,-720.79,0.00027397,14]
[339684475,1727863851678,-451.19026334,0.00027397,14]
[339684476,1727863851689,-500.0,0.00027397,14]
[339684477,1727863851699,-500.0,0.00027397,14]
[339684478,1727863851709,-500.0,0.00027397,14]
[339684479,1727863851718,-1655.7,0.00027397,14]
[339684480,1727863851728,-500.0,0.00027397,14]
[339684481,1727863851737,-1024.2,0.00027397,14]
[339684482,1727863851747,-500.0,0.00027397,14]
[339684483,1727863851756,-2004.47,0.00027397,14]
[339684484,1727863851766,-4142.33,0.00027397,14]
[339684485,1727863851775,-500.0,0.00027397,14]
[339684486,1727863851785,-500.0,0.00027397,14]
[339684487,1727863851794,-500.0,0.00027397,14]
[339684488,1727863851804,-1164.42,0.00027397,14]
[339684489,1727863851813,-500.0,0.00027397,14]
[339684490,1727863851823,-1072.8,0.00027397,14]
[339684491,1727863851832,-500.0,0.00027397,14]
[339684492,1727863851842,-1841.45,0.00027397,14]
[339684493,1727863851851,-640.9,0.00027397,14]
[339684494,1727863851860,-1237.15,0.00027397,14]
[339684495,1727863851870,-500.0,0.00027397,14]
[339684496,1727863851880,-579.07,0.00027397,14]
[339684497,1727863851889,-2112.98,0.00027397,14]
[339684498,1727863851899,-500.0,0.00027397,14]
[339684499,1727863851909,-500.0,0.00027397,14]
[339684500,1727863851919,-834.43,0.00027397,14]
[339684501,1727863851929,-1435.34,0.00027397,14]
[339684502,1727863851938,-500.0,0.00027397,14]
[339684503,1727863851948,-500.0,0.00027397,14]
[339684504,1727863851957,-500.0,0.00027397,14]
[339684505,1727863851967,-569.87985728,0.00027397,14]
[339684506,1727863851977,-1748.61,0.00027397,14]
[339684507,1727863851987,-1171.55,0.00027397,14]
[339684508,1727863851996,-500.0,0.00027397,14]
[339684509,1727863852005,-1046.05,0.00027397,14]
[339684510,1727863852015,-3249.23,0.00027397,14]
[339684511,1727863852025,-500.0,0.00027397,14]
[339684512,1727863852035,-500.0,0.00027397,14]
[339684513,1727863852045,-665.56,0.00027397,14]
[339684514,1727863852055,-500.0,0.00027397,14]
[339684515,1727863852065,-593.3,0.00027397,14]
[339684516,1727863852075,-500.0,0.00027397,14]
[339684517,1727863852085,-500.0,0.00027397,14]
[339684518,1727863852095,-500.0,0.00027397,14]
[339684519,1727863852105,-2464.92,0.00027397,14]
[339684520,1727863852115,-983.75,0.00027397,14]
[339684521,1727863852125,-1967.32,0.00027397,14]
[339684522,1727863852135,-522.0062995,0.00027397,14]
[339684523,1727863852145,-500.0,0.00027397,14]
[339684524,1727863852156,-2340.41,0.00027397,14]
[339684525,1727863852165,-500.0,0.00027397,14]
[339684526,1727863852175,-895.71,0.00027397,14]
[339684527,1727863852184,-655.32,0.00027397,14]
[339684528,1727863852193,-500.0,0.00027397,14]
[339684529,1727863852203,-500.0,0.00027397,14]
[339684530,1727863852213,-1621.27,0.00027397,14]
[339684531,1727863852223,-398.01069168,0.00027397,14]
[339684532,1727863852232,-1345.36,0.00027397,14]
[339684533,1727863852243,-500.0,0.00027397,14]
[339684534,1727863852252,-500.0,0.00027397,14]
[339684535,1727863852262,-656.73,0.00027397,14]
[339684536,1727863852272,-817.63,0.00027397,14]
[339684537,1727863852281,-169.8966552,0.00027397,14]
[339684538,1727863852292,-500.0,0.00027397,14]
[339684539,1727863852302,-1516.91,0.00027397,14]
[339684540,1727863852311,-1769.84,0.00027397,14]
[339684541,1727863852321,-512.42,0.00027397,14]
[339684542,1727863852329,-500.0,0.00027397,14]
[339684543,1727863852339,-2132.99,0.00027397,14]
[339684544,1727863852352,-500.0,0.00027397,14]
[339684545,1727863852360,-500.0,0.00027397,14]
[339684546,1727863852370,-500.0,0.00027397,14]
[339684547,1727863852379,-500.0,0.00027397,14]
[339684548,1727863852389,-1262.94,0.00027397,14]
[339684549,1727863852399,-584.71,0.00027397,14]
[339684550,1727863852408,-500.0,0.00027397,14]
[339684551,1727863852417,-500.0,0.00027397,14]
[339684552,1727863852429,-500.0,0.00027397,14]
[339684553,1727863852439,-500.0,0.00027397,14]
[339684554,1727863852448,-500.0,0.00027397,14]
[339684555,1727863852458,-2501.09,0.00027397,14]
[339684556,1727863852467,-500.0,0.00027397,14]
[339684557,1727863852476,-2136.63,0.00027397,14]
[339684558,1727863852486,-500.0,0.00027397,14]
[339684559,1727863852495,-500.0,0.00027397,14]
[339684560,1727863852505,-500.0,0.00027397,14]
[339684561,1727863852515,-500.0,0.00027397,14]
[339684562,1727863852524,-500.0,0.00027397,14]
[339684563,1727863852533,-3414.52,0.00027397,14]
[339684564,1727863852542,-1963.81,0.00027397,14]
[339684565,1727863852552,-699.38,0.00027397,14]
[339684566,1727863852561,-620.65,0.00027397,14]
[339684567,1727863852571,-500.0,0.00027397,14]
[339684568,1727863852581,-500.0,0.00027397,14]
[339684569,1727863852590,-500.0,0.00027397,14]
[339684570,1727863852600,-2616.41,0.00027397,14]
[339684571,1727863852610,-500.0,0.00027397,14]
[339684572,1727863852619,-500.0,0.00027397,14]
[339684573,1727863852629,-837.71,0.00027397,14]
[339684574,1727863852638,-500.0,0.00027397,14]